fUST/lending_fUST_20260514
["ID","MTS","AMOUNT","RATE_DAILY","PERIOD"]
[422211620,1778703046000,-500.0,0.0001041,2]
[422211619,1778703046000,-500.0,0.0001041,2]
[422211608,1778703046000,-151.5,0.0001041,2]
[422211615,1778703046000,-151.5,0.0001041,2]
[422211616,1778703046000,-500.0,0.0001041,2]
[422211618,1778703046000,-175.79440304,0.0001041,2]
[422211612,1778703046000,-500.0,0.0001041,2]
[422211611,1778703046000,-151.5,0.0001041,2]
[422211610,1778703046000,-500.0,0.0001041,2]
[422211609,1778703046000,-500.0,0.0001041,2]
[422211613,1778703046000,-217.94569851,0.0001041,2]
[422211625,1778703047000,-500.0,0.0001041,2]
[422211627,1778703047000,-500.0,0.0001041,2]
[422211621,1778703047000,-323.7223841,0.0001041,2]
[422211622,1778703047000,-500.0,0.0001041,2]
[422211626,1778703047000,-500.0,0.0001041,2]
[422211623,1778703047000,-500.0,0.0001041,2]
[422211624,1778703047000,-500.0,0.0001041,2]
[422211632,1778703047000,-500.0,0.0001041,2]
[422211628,1778703047000,-597.84421131,0.0001041,2]
[422211629,1778703047000,-500.0,0.0001041,2]
[422211631,1778703047000,-500.0,0.0001041,2]
[422211633,1778703047000,-500.0,0.0001041,2]
[422211635,1778703047000,-361.10419893,0.0001041,2]
[422211634,1778703047000,-500.0,0.0001041,2]
[422211630,1778703047000,-500.0,0.0001041,2]
[422211637,1778703685000,163.076489,4.413e-05,2]
[422211680,1778704232000,-566.28921522,8.058e-05,2]
[422211664,1778704232000,-173.79292292,7.977e-05,2]
[422211666,1778704232000,-1695.60785684,8.058e-05,2]
[422211669,1778704232000,-262.32078478,8.058e-05,2]
[422211757,1778704238000,-2475.78214316,8.058e-05,2]
[422211783,1778704238000,-261.7959356,9.624e-05,2]
[422211761,1778704238000,-4739.11364261,8.139e-05,2]
[422211762,1778704238000,-300.0,8.22e-05,2]
[422211764,1778704238000,-361.36044682,8.516e-05,2]
[422211766,1778704238000,-151.0,8.802e-05,2]
[422211781,1778704238000,-151.0,9.622e-05,2]
[422211779,1778704238000,-152.0,9.487e-05,7]
[422211770,1778704238000,-151.5897819,8.802e-05,2]
[422211759,1778704238000,-260.88635739,8.139e-05,2]
[422211768,1778704238000,-456.4437056,8.802e-05,2]
[422211771,1778704238000,-420.0,9.042e-05,2]
[422211775,1778704238000,-152.0,9.484e-05,7]
[422211777,1778704238000,-411.78042942,9.484e-05,2]
[422211786,1778704238000,-438.8110317,9.624e-05,2]
[422211784,1778704238000,-325.8583785,9.624e-05,2]
[422211801,1778704238000,-560.78235578,0.00010006,2]
[422211792,1778704238000,-180.03,9.65e-05,2]
[422211796,1778704238000,-587.0,9.946e-05,2]
[422211798,1778704238000,-9607.45345031,0.00010006,2]
[422211773,1778704238000,-152.0,9.484e-05,7]
[422211946,1778704240000,-1825.08070627,9.395e-05,2]
[422211948,1778704240000,-15984.76419391,0.00010006,2]
[422211949,1778704240000,-500.0,0.00010007,2]
[422211950,1778704240000,-546.1561002,0.00010007,2]
[422211951,1778704240000,-546.1561002,0.00010007,2]
[422211947,1778704240000,-1525.4351633,9.395e-05,2]
[422211952,1778704240000,-249.9784264,0.00010007,2]
[422211955,1778704240000,-55.07480719,0.00010007,2]
[422211956,1778704240000,-491.08129301,0.00010007,2]
[422211957,1778704240000,-119.88253575,0.00010007,2]
[422211953,1778704240000,-546.1561002,0.00010007,2]
[422211954,1778704240000,-546.1561002,0.00010007,2]
[422211964,1778704243000,-426.27356445,0.00010007,2]
[422211970,1778704243000,-500.0,0.00010007,2]
[422211971,1778704243000,-111.373881,0.00010007,2]
[422211967,1778704243000,-546.1561002,0.00010007,2]
[422211968,1778704243000,-232.45434123,0.00010007,2]
[422211969,1778704243000,-267.54565877,0.00010007,2]
[422211966,1778704243000,-546.1561002,0.00010007,2]
[422211965,1778704243000,-546.1561002,0.00010007,2]
[422211981,1778704247000,-188.07309333,0.00010007,2]
[422211979,1778704247000,-500.0,0.00010007,2]
[422211980,1778704247000,-500.0,0.00010007,2]
[422211982,1778704247000,-500.0,0.00010007,2]
[422211977,1778704247000,-500.0,0.00010007,2]
[422211976,1778704247000,-500.0,0.00010007,2]
[422211974,1778704247000,-434.7822192,0.00010007,2]
[422211978,1778704247000,-500.0,0.00010007,2]
[422211975,1778704247000,-500.0,0.00010007,2]
[422211984,1778704247000,-500.0,0.00010007,2]
[422211985,1778704247000,-574.96496838,0.00010007,2]
[422211986,1778704247000,-546.1561002,0.00010007,2]
[422211989,1778704247000,-546.1561002,0.00010007,2]
[422211990,1778704247000,-546.1561002,0.00010007,2]
[422211988,1778704247000,-546.1561002,0.00010007,2]
[422211987,1778704247000,-500.0,0.00010007,2]
[422211992,1778704247000,-58596.36774606,0.00010008,2]
[422211993,1778704247000,-9843.08360322,0.00010008,2]
[422211991,1778704247000,-546.1561002,0.00010007,2]
[422211983,1778704247000,-500.0,0.00010007,2]
[422211994,1778704272000,-5000.0,9.808e-05,2]
[422211995,1778704290000,-523.60051223,9.907e-05,2]
[422212023,1778705432000,-3257.4806787,8.254e-05,2]
[422212030,1778705432000,-1742.5193213,8.254e-05,2]
[422212032,1778705432000,-1105.4806787,8.337e-05,2]
[422212321,1778705438000,-523.60051223,8.421e-05,2]
[422212323,1778705438000,-300.0,8.505e-05,2]
[422212320,1778705438000,-3894.5193213,8.337e-05,2]
[422212325,1778705438000,-360.01319133,8.549e-05,2]
[422212336,1778705438000,-445.89809871,9.395e-05,2]
[422212334,1778705438000,-8917.96197413,9.395e-05,2]
[422212330,1778705438000,-5707.49566344,9.395e-05,2]
[422212329,1778705438000,-4369.80136732,9.395e-05,2]
[422212327,1778705438000,-420.0,9.356e-05,2]
[422212338,1778705438000,-152.0,9.484e-05,7]
[422212332,1778705438000,-7223.54919904,9.395e-05,2]
[422212345,1778705438000,-245.52879096,9.74e-05,2]
[422212339,1778705438000,-152.0,9.484e-05,7]
[422212360,1778705438000,-500.0,9.74e-05,2]
[422212341,1778705438000,-52866.0,9.735e-05,2]
[422212357,1778705438000,-500.0,9.74e-05,2]
[422212343,1778705438000,-500.0,9.74e-05,2]
[422212352,1778705438000,-500.0,9.74e-05,2]
[422212355,1778705438000,-155.13476742,9.74e-05,2]
[422212348,1778705438000,-500.0,9.74e-05,2]
[422212350,1778705438000,-500.0,9.74e-05,2]
[422212346,1778705438000,-500.0,9.74e-05,2]
[422212354,1778705438000,-500.0,9.74e-05,2]
[422212370,1778705439000,-388.3869658,9.74e-05,2]
[422212374,1778705439000,-659.12963816,9.74e-05,2]
[422212375,1778705439000,-659.12963816,9.74e-05,2]
[422212377,1778705439000,-659.12963816,9.74e-05,2]
[422212376,1778705439000,-659.12963816,9.74e-05,2]
[422212379,1778705439000,-659.12963816,9.74e-05,2]
[422212382,1778705439000,-659.12963816,9.74e-05,2]
[422212373,1778705439000,-659.12963816,9.74e-05,2]
[422212369,1778705439000,-264.23796469,9.74e-05,2]
[422212363,1778705439000,-500.0,9.74e-05,2]
[422212366,1778705439000,-500.0,9.74e-05,2]
[422212368,1778705439000,-500.0,9.74e-05,2]
[422212365,1778705439000,-500.0,9.74e-05,2]
[422212362,1778705439000,-500.0,9.74e-05,2]
[422212364,1778705439000,-346.40422408,9.74e-05,2]
[422212371,1778705439000,-659.12963816,9.74e-05,2]
[422212372,1778705439000,-659.12963816,9.74e-05,2]
[422212384,1778705439000,-659.12963816,9.74e-05,2]
[422212367,1778705439000,-455.24734367,9.74e-05,2]
[422212380,1778705439000,-659.12963816,9.74e-05,2]
[422212397,1778705439000,-1199.21646896,9.74e-05,2]
[422212381,1778705439000,-659.12963816,9.74e-05,2]
[422212402,1778705439000,-29645.73086605,9.741e-05,2]
[422212399,1778705439000,-1323670.92736058,9.741e-05,2]
[422212383,1778705439000,-659.12963816,9.74e-05,2]
[422212400,1778705439000,-62274.5578665,9.741e-05,2]
[422212398,1778705439000,-515.10729026,9.741e-05,2]
[422212393,1778705439000,-683.09798865,9.74e-05,2]
[422212392,1778705439000,-683.09798865,9.74e-05,2]
[422212389,1778705439000,-683.09798865,9.74e-05,2]
[422212390,1778705439000,-683.09798865,9.74e-05,2]
[422212401,1778705439000,-968.13929442,9.741e-05,2]
[422212385,1778705439000,-659.12963816,9.74e-05,2]
[422212388,1778705439000,-659.12963816,9.74e-05,2]
[422212387,1778705439000,-659.12963816,9.74e-05,2]
[422212391,1778705439000,-683.09798865,9.74e-05,2]
[422212396,1778705439000,-683.09798865,9.74e-05,2]
[422212394,1778705439000,-683.09798865,9.74e-05,2]
[422212395,1778705439000,-683.09798865,9.74e-05,2]
[422212386,1778705439000,-659.12963816,9.74e-05,2]
[422212378,1778705439000,-659.12963816,9.74e-05,2]
[422212416,1778705446000,-802.61657767,9.395e-05,2]
[422212418,1778705446000,-25175.77198298,9.741e-05,2]
[422212417,1778705446000,-1426.87391586,9.395e-05,2]
[422212419,1778705447000,-5679.61904613,9.741e-05,2]
[422212483,1778706632000,-327.0,7.184e-05,2]
[422212607,1778706638000,-2935.90609495,7.6e-05,2]
[422212582,1778706638000,-1919.02287092,7.184e-05,2]
[422212586,1778706638000,-3919.04796502,7.257e-05,2]
[422212584,1778706638000,-1080.95203498,7.257e-05,2]
[422212588,1778706638000,-160.322468,7.33e-05,2]
[422212590,1778706638000,-356.14647814,7.39e-05,2]
[422212592,1778706638000,-300.0,7.599e-05,2]
[422212594,1778706638000,-646.55060456,7.6e-05,2]
[422212597,1778706638000,-1057.95307457,7.6e-05,2]
[422212604,1778706638000,-3064.4651141,7.6e-05,2]
[422212612,1778706638000,-300.0,7.751e-05,2]
[422212621,1778706638000,-300.0,7.751e-05,2]
[422212616,1778706638000,-300.0,7.751e-05,2]
[422212608,1778706638000,-300.0,7.751e-05,2]
[422212610,1778706638000,-300.0,7.751e-05,2]
[422212614,1778706638000,-300.0,7.751e-05,2]
[422212629,1778706638000,-300.0,7.751e-05,2]
[422212618,1778706638000,-300.0,7.751e-05,2]
[422212625,1778706638000,-300.0,7.751e-05,2]
[422212627,1778706638000,-300.0,7.751e-05,2]
[422212623,1778706638000,-300.0,7.751e-05,2]
[422212619,1778706638000,-300.0,7.751e-05,2]
[422212633,1778706639000,-300.0,7.751e-05,2]
[422212631,1778706639000,-300.0,7.751e-05,2]
[422212635,1778706639000,-300.0,7.751e-05,2]
[422212647,1778706639000,-420.25284421,9.39e-05,2]
[422212640,1778706639000,-600.0,8.215e-05,2]
[422212636,1778706639000,-3210.46631069,8.055e-05,2]
[422212645,1778706639000,-720.0,9.037e-05,2]
[422212653,1778706639000,-15224.72733674,9.425e-05,2]
[422212643,1778706639000,-218.29,8.951e-05,2]
[422212642,1778706639000,-250.93973679,8.768e-05,2]
[422212649,1778706639000,-4808.82905141,9.425e-05,2]
[422212651,1778706639000,-2229.49049353,7.652e-05,2]
[422212638,1778706639000,-10779.94325471,8.055e-05,2]
[422212727,1778706641000,-394.13321034,9.425e-05,2]
[422212728,1778706641000,-818.56969456,9.425e-05,2]
[422212730,1778706641000,-414.12432266,9.425e-05,2]
[422212731,1778706641000,-7222.38778036,9.425e-05,2]
[422212729,1778706641000,-1071.84988445,9.425e-05,2]
[422212743,1778706644000,-15144.91822788,9.425e-05,2]
[422212742,1778706644000,-720.0,9.425e-05,2]
[422212748,1778706647000,-1026.01566809,9.425e-05,2]
[422212758,1778707831000,-2013.05918132,7.904e-05,2]
[422212760,1778707831000,-2750.0,7.904e-05,2]
[422212763,1778707831000,-236.94081868,7.904e-05,2]
[422212766,1778707831000,-359.38694165,8.105e-05,2]
[422212770,1778707831000,-325.8415176,8.8e-05,2]
[422212764,1778707831000,-5000.0,7.984e-05,2]
[422212772,1778707831000,-151.0,8.8e-05,2]
[422212778,1778707831000,-330.63688694,9.031e-05,2]
[422212774,1778707831000,-300.0,9.03e-05,2]
[422212780,1778707831000,-1076.45481776,9.031e-05,2]
[422212776,1778707831000,-887.10103238,9.031e-05,2]
[422212782,1778707831000,-1374.65314757,9.031e-05,2]
[422212768,1778707831000,-167.018395,8.395e-05,2]
[422212912,1778707838000,-100000.0,9.994e-05,2]
[422212890,1778707838000,-151.0,9.741e-05,2]
[422212877,1778707838000,-300.0,9.612e-05,2]
[422212875,1778707838000,-300.0,9.612e-05,2]
[422212888,1778707838000,-151.0,9.741e-05,2]
[422212892,1778707838000,-151.0,9.741e-05,2]
[422212894,1778707838000,-151.0,9.741e-05,2]
[422212885,1778707838000,-457.8119781,9.622e-05,2]
[422212883,1778707838000,-325.8415176,9.622e-05,2]
[422212873,1778707838000,-300.0,9.612e-05,2]
[422212881,1778707838000,-327.9088981,9.622e-05,2]
[422212879,1778707838000,-600.0,9.621e-05,2]
[422212900,1778707838000,-537.6845,9.754e-05,2]
[422212898,1778707838000,-180.62727801,9.754e-05,2]
[422212902,1778707838000,-557.5788265,9.809e-05,2]
[422212915,1778707838000,-500.0,9.997e-05,2]
[422212896,1778707838000,-537.6845,9.754e-05,2]
[422212871,1778707838000,-300.0,9.612e-05,2]
[422212869,1778707838000,-300.0,9.612e-05,2]
[422212865,1778707838000,-300.0,9.612e-05,2]
[422212843,1778707838000,-4768.12583573,9.425e-05,2]
[422212834,1778707838000,-763.1108731,9.031e-05,2]
[422212840,1778707838000,-5755.69909208,9.425e-05,2]
[422212832,1778707838000,-5000.0,8.941e-05,2]
[422212836,1778707838000,-7540.5045787,9.224e-05,2]
[422212838,1778707838000,-30880.81714417,9.225e-05,2]
[422212847,1778707838000,-268.6683525,9.546e-05,2]
[422212857,1778707838000,-300.0,9.612e-05,2]
[422212845,1778707838000,-152.0,9.489e-05,7]
[422212855,1778707838000,-300.0,9.612e-05,2]
[422212861,1778707838000,-300.0,9.612e-05,2]
[422212859,1778707838000,-300.0,9.612e-05,2]
[422212867,1778707838000,-300.0,9.612e-05,2]
[422212849,1778707838000,-300.0,9.612e-05,2]
[422212853,1778707838000,-300.0,9.612e-05,2]
[422212863,1778707838000,-300.0,9.612e-05,2]
[422212851,1778707838000,-300.0,9.612e-05,2]
[422212904,1778707838000,-578.20924308,9.864e-05,2]
[422212937,1778707838000,-586.48363918,9.999e-05,2]
[422212920,1778707838000,-586.48363918,9.999e-05,2]
[422212954,1778707838000,-630.46991211,9.999e-05,2]
[422212964,1778707838000,-630.46991211,9.999e-05,2]
[422212962,1778707838000,-630.46991211,9.999e-05,2]
[422212968,1778707838000,-630.46991211,9.999e-05,2]
[422212958,1778707838000,-630.46991211,9.999e-05,2]
[422212960,1778707838000,-630.46991211,9.999e-05,2]
[422212970,1778707838000,-630.46991211,9.999e-05,2]
[422212956,1778707838000,-630.46991211,9.999e-05,2]
[422212966,1778707838000,-630.46991211,9.999e-05,2]
[422212981,1778707838000,-322.69320164,9.999e-05,2]
[422212979,1778707838000,-500.0,9.999e-05,2]
[422212978,1778707838000,-615.40359393,9.999e-05,2]
[422212980,1778707838000,-500.0,9.999e-05,2]
[422212984,1778707838000,-10296.86003538,0.0001,2]
[422212982,1778707838000,-10011.09629641,0.0001,2]
[422212918,1778707838000,-500.0,9.999e-05,2]
[422212977,1778707838000,-1043.32601589,9.999e-05,2]
[422212951,1778707838000,-630.46991211,9.999e-05,2]
[422212983,1778707838000,-97604.40469522,0.0001,2]
[422212932,1778707838000,-586.48363918,9.999e-05,2]
[422212906,1778707838000,-599.60298507,9.919e-05,2]
[422212910,1778707838000,-621.78829552,9.974e-05,2]
[422212908,1778707838000,-340.0,9.933e-05,2]
[422212926,1778707838000,-586.48363918,9.999e-05,2]
[422212916,1778707838000,-227.54304646,9.999e-05,2]
[422212924,1778707838000,-586.48363918,9.999e-05,2]
[422212939,1778707838000,-586.48363918,9.999e-05,2]
[422212923,1778707838000,-269.47451577,9.999e-05,2]
[422212943,1778707838000,-586.48363918,9.999e-05,2]
[422212928,1778707838000,-586.48363918,9.999e-05,2]
[422212927,1778707838000,-586.48363918,9.999e-05,2]
[422212945,1778707838000,-586.48363918,9.999e-05,2]
[422212930,1778707838000,-586.48363918,9.999e-05,2]
[422212934,1778707838000,-586.48363918,9.999e-05,2]
[422212947,1778707838000,-586.48363918,9.999e-05,2]
[422212941,1778707838000,-586.48363918,9.999e-05,2]
[422212949,1778707838000,-630.46991211,9.999e-05,2]
[422212990,1778707840000,-2433.1418704,0.0001,2]
[422212988,1778707840000,-877.39454321,0.0001,2]
[422212989,1778707840000,-8062.67349115,0.0001,2]
[422213011,1778707846000,-30371.86598955,0.0001,2]
[422213010,1778707846000,-30438.18514919,0.0001,2]
[422213012,1778707891000,-3378.19703498,9.712e-05,2]
[422213054,1778708134000,-5000.0,8.764e-05,2]
[422213055,1778708134000,-358.29685942,8.809e-05,2]
[422213074,1778708135000,-555.18758965,9.124e-05,2]
[422213070,1778708135000,-555.18758965,9.124e-05,2]
[422213073,1778708135000,-555.18758965,9.124e-05,2]
[422213071,1778708135000,-555.18758965,9.124e-05,2]
[422213068,1778708135000,-555.18758965,9.124e-05,2]
[422213069,1778708135000,-555.18758965,9.124e-05,2]
[422213067,1778708135000,-555.18758965,9.124e-05,2]
[422213066,1778708135000,-555.18758965,9.124e-05,2]
[422213064,1778708135000,-500.0,9.124e-05,2]
[422213062,1778708135000,-5657.16420682,9.124e-05,2]
[422213061,1778708135000,-896.55,8.942e-05,2]
[422213063,1778708135000,-162.52625228,9.124e-05,2]
[422213059,1778708135000,-300.0,8.941e-05,2]
[422213060,1778708135000,-300.0,8.941e-05,2]
[422213057,1778708135000,-5000.0,8.853e-05,2]
[422213058,1778708135000,-300.0,8.94e-05,2]
[422213056,1778708135000,-1200.0,8.852e-05,2]
[422213065,1778708135000,-555.18758965,9.124e-05,2]
[422213076,1778708135000,-555.18758965,9.124e-05,2]
[422213072,1778708135000,-555.18758965,9.124e-05,2]
[422213077,1778708135000,-555.18758965,9.124e-05,2]
[422213075,1778708135000,-555.18758965,9.124e-05,2]
[422213096,1778708135000,-500.0,9.124e-05,2]
[422213094,1778708135000,-500.0,9.124e-05,2]
[422213093,1778708135000,-500.0,9.124e-05,2]
[422213092,1778708135000,-491.32209419,9.124e-05,2]
[422213091,1778708135000,-500.0,9.124e-05,2]
[422213089,1778708135000,-500.0,9.124e-05,2]
[422213090,1778708135000,-500.0,9.124e-05,2]
[422213088,1778708135000,-1014.32772635,9.124e-05,2]
[422213095,1778708135000,-184.08908744,9.124e-05,2]
[422213085,1778708135000,-582.94696914,9.124e-05,2]
[422213087,1778708135000,-582.94696914,9.124e-05,2]
[422213084,1778708135000,-582.94696914,9.124e-05,2]
[422213082,1778708135000,-582.94696914,9.124e-05,2]
[422213081,1778708135000,-582.94696914,9.124e-05,2]
[422213083,1778708135000,-582.94696914,9.124e-05,2]
[422213078,1778708135000,-555.18758965,9.124e-05,2]
[422213079,1778708135000,-582.94696914,9.124e-05,2]
[422213080,1778708135000,-582.94696914,9.124e-05,2]
[422213086,1778708135000,-582.94696914,9.124e-05,2]
[422213097,1778708136000,-300.0,9.124e-05,2]
[422213098,1778708136000,-111316.57479614,9.125e-05,2]
[422213148,1778709032000,-179.80389188,8.335e-05,2]
[422213282,1778709038000,-500.0,9.124e-05,2]
[422213287,1778709038000,-500.0,9.124e-05,2]
[422213286,1778709038000,-173.48612946,9.124e-05,2]
[422213288,1778709038000,-200.0,9.124e-05,2]
[422213284,1778709038000,-500.0,9.124e-05,2]
[422213290,1778709038000,-500.0,9.124e-05,2]
[422213291,1778709038000,-9386.65491339,9.125e-05,2]
[422213299,1778709038000,-710505.76500467,9.125e-05,2]
[422213301,1778709038000,-76123.97234697,9.225e-05,2]
[422213280,1778709038000,-500.0,9.124e-05,2]
[422213313,1778709038000,-300.0,9.306e-05,2]
[422213327,1778709038000,-300.0,9.306e-05,2]
[422213305,1778709038000,-333.0,9.26e-05,2]
[422213319,1778709038000,-300.0,9.306e-05,2]
[422213317,1778709038000,-300.0,9.306e-05,2]
[422213303,1778709038000,-5013.3731091,9.225e-05,2]
[422213321,1778709038000,-300.0,9.306e-05,2]
[422213307,1778709038000,-300.0,9.306e-05,2]
[422213323,1778709038000,-300.0,9.306e-05,2]
[422213309,1778709038000,-300.0,9.306e-05,2]
[422213331,1778709038000,-300.0,9.306e-05,2]
[422213278,1778709038000,-500.0,9.124e-05,2]
[422213329,1778709038000,-300.0,9.306e-05,2]
[422213315,1778709038000,-300.0,9.306e-05,2]
[422213265,1778709038000,-500.0,9.124e-05,2]
[422213256,1778709038000,-298.23212083,9.124e-05,2]
[422213260,1778709038000,-500.0,9.124e-05,2]
[422213226,1778709038000,-4820.19610812,8.335e-05,2]
[422213228,1778709038000,-1200.0,8.418e-05,2]
[422213229,1778709038000,-5000.0,8.419e-05,2]
[422213240,1778709038000,-500.0,9.124e-05,2]
[422213232,1778709038000,-260.0,8.545e-05,2]
[422213241,1778709038000,-522.36130407,9.124e-05,2]
[422213244,1778709038000,-500.0,9.124e-05,2]
[422213238,1778709038000,-151.0,8.724e-05,2]
[422213252,1778709038000,-500.0,9.124e-05,2]
[422213236,1778709038000,-365.42625028,8.547e-05,2]
[422213234,1778709038000,-300.0,8.545e-05,2]
[422213245,1778709038000,-500.0,9.124e-05,2]
[422213247,1778709038000,-500.0,9.124e-05,2]
[422213250,1778709038000,-500.0,9.124e-05,2]
[422213254,1778709038000,-500.0,9.124e-05,2]
[422213258,1778709038000,-500.0,9.124e-05,2]
[422213269,1778709038000,-500.0,9.124e-05,2]
[422213271,1778709038000,-500.0,9.124e-05,2]
[422213267,1778709038000,-500.0,9.124e-05,2]
[422213276,1778709038000,-500.0,9.124e-05,2]
[422213273,1778709038000,-500.0,9.124e-05,2]
[422213264,1778709038000,-500.0,9.124e-05,2]
[422213262,1778709038000,-500.0,9.124e-05,2]
[422213274,1778709038000,-500.0,9.124e-05,2]
[422213338,1778709038000,-600.0,9.306e-05,2]
[422213311,1778709038000,-300.0,9.306e-05,2]
[422213333,1778709038000,-300.0,9.306e-05,2]
[422213400,1778709038000,-500.0,9.598e-05,2]
[422213397,1778709038000,-500.0,9.598e-05,2]
[422213403,1778709038000,-500.0,9.598e-05,2]
[422213404,1778709038000,-500.0,9.598e-05,2]
[422213406,1778709038000,-500.0,9.598e-05,2]
[422213408,1778709038000,-500.0,9.598e-05,2]
[422213410,1778709038000,-500.0,9.598e-05,2]
[422213423,1778709038000,-500.0,9.598e-05,2]
[422213425,1778709038000,-500.0,9.598e-05,2]
[422213420,1778709038000,-500.0,9.598e-05,2]
[422213412,1778709038000,-500.0,9.598e-05,2]
[422213399,1778709038000,-500.0,9.598e-05,2]
[422213418,1778709038000,-500.0,9.598e-05,2]
[422213421,1778709038000,-500.0,9.598e-05,2]
[422213416,1778709038000,-500.0,9.598e-05,2]
[422213427,1778709038000,-500.0,9.598e-05,2]
[422213429,1778709038000,-500.0,9.598e-05,2]
[422213431,1778709038000,-500.0,9.598e-05,2]
[422213433,1778709038000,-500.0,9.598e-05,2]
[422213437,1778709038000,-500.0,9.598e-05,2]
[422213436,1778709038000,-500.0,9.598e-05,2]
[422213435,1778709038000,-500.0,9.598e-05,2]
[422213438,1778709038000,-500.0,9.598e-05,2]
[422213340,1778709038000,-500.0,9.306e-05,2]
[422213414,1778709038000,-500.0,9.598e-05,2]
[422213389,1778709038000,-500.0,9.598e-05,2]
[422213325,1778709038000,-300.0,9.306e-05,2]
[422213391,1778709038000,-500.0,9.598e-05,2]
[422213395,1778709038000,-500.0,9.598e-05,2]
[422213342,1778709038000,-420.0,9.4e-05,2]
[422213344,1778709038000,-152.0,9.486e-05,7]
[422213347,1778709038000,-537.6845,9.543e-05,2]
[422213335,1778709038000,-300.0,9.306e-05,2]
[422213353,1778709038000,-557.5788265,9.598e-05,2]
[422213351,1778709038000,-500.0,9.58e-05,2]
[422213356,1778709038000,-500.0,9.598e-05,2]
[422213366,1778709038000,-500.0,9.598e-05,2]
[422213358,1778709038000,-500.0,9.598e-05,2]
[422213362,1778709038000,-286.54,9.598e-05,2]
[422213360,1778709038000,-500.0,9.598e-05,2]
[422213349,1778709038000,-537.6845,9.543e-05,2]
[422213368,1778709038000,-500.0,9.598e-05,2]
[422213370,1778709038000,-500.0,9.598e-05,2]
[422213387,1778709038000,-500.0,9.598e-05,2]
[422213385,1778709038000,-500.0,9.598e-05,2]
[422213383,1778709038000,-500.0,9.598e-05,2]
[422213375,1778709038000,-500.0,9.598e-05,2]
[422213379,1778709038000,-500.0,9.598e-05,2]
[422213377,1778709038000,-500.0,9.598e-05,2]
[422213373,1778709038000,-500.0,9.598e-05,2]
[422213372,1778709038000,-500.0,9.598e-05,2]
[422213364,1778709038000,-500.0,9.598e-05,2]
[422213381,1778709038000,-500.0,9.598e-05,2]
[422213498,1778709039000,-500.0,9.598e-05,2]
[422213507,1778709039000,-500.0,9.598e-05,2]
[422213495,1778709039000,-500.0,9.598e-05,2]
[422213497,1778709039000,-500.0,9.598e-05,2]
[422213508,1778709039000,-500.0,9.598e-05,2]
[422213490,1778709039000,-500.0,9.598e-05,2]
[422213496,1778709039000,-500.0,9.598e-05,2]
[422213488,1778709039000,-500.0,9.598e-05,2]
[422213489,1778709039000,-500.0,9.598e-05,2]
[422213487,1778709039000,-500.0,9.598e-05,2]
[422213501,1778709039000,-500.0,9.598e-05,2]
[422213506,1778709039000,-500.0,9.598e-05,2]
[422213500,1778709039000,-500.0,9.598e-05,2]
[422213517,1778709039000,-599.60298507,9.708e-05,2]
[422213502,1778709039000,-500.0,9.598e-05,2]
[422213505,1778709039000,-500.0,9.598e-05,2]
[422213503,1778709039000,-500.0,9.598e-05,2]
[422213509,1778709039000,-500.0,9.598e-05,2]
[422213511,1778709039000,-500.0,9.598e-05,2]
[422213512,1778709039000,-500.0,9.598e-05,2]
[422213521,1778709039000,-71088.6543878,9.81e-05,2]
[422213519,1778709039000,-1024.2663704,9.808e-05,2]
[422213513,1778709039000,-500.0,9.598e-05,2]
[422213516,1778709039000,-578.20924308,9.653e-05,2]
[422213522,1778709039000,-151.0,9.81e-05,2]
[422213486,1778709039000,-500.0,9.598e-05,2]
[422213518,1778709039000,-621.78829552,9.763e-05,2]
[422213499,1778709039000,-500.0,9.598e-05,2]
[422213493,1778709039000,-500.0,9.598e-05,2]
[422213464,1778709039000,-500.0,9.598e-05,2]
[422213494,1778709039000,-500.0,9.598e-05,2]
[422213442,1778709039000,-500.0,9.598e-05,2]
[422213445,1778709039000,-500.0,9.598e-05,2]
[422213443,1778709039000,-500.0,9.598e-05,2]
[422213447,1778709039000,-500.0,9.598e-05,2]
[422213449,1778709039000,-500.0,9.598e-05,2]
[422213451,1778709039000,-500.0,9.598e-05,2]
[422213440,1778709039000,-500.0,9.598e-05,2]
[422213453,1778709039000,-500.0,9.598e-05,2]
[422213455,1778709039000,-500.0,9.598e-05,2]
[422213461,1778709039000,-500.0,9.598e-05,2]
[422213470,1778709039000,-500.0,9.598e-05,2]